fUSD/lending_fUSD_20240322
["ID","MTS","AMOUNT","RATE_DAILY","PERIOD"]
[320047219,1711115441725,-2353.70752281,0.00020999,2]
[320047220,1711115441734,-150.01,0.00020999,2]
[320047221,1711115441743,-1500.53117374,0.00020999,2]
[320047222,1711115441753,-383709.51176246,0.00021,2]
[320047223,1711115441763,-8937.64415507,0.00021,2]
[320047224,1711115441773,-550.0,0.00021,3]
[320047225,1711115441789,-9884.44,0.00021096,2]
[320047226,1711115441799,-2000.0,0.00021096,2]
[320047227,1711115441809,-1000.0,0.000211,2]
[320047228,1711115441819,-528.54,0.00021156,2]
[320047229,1711115441829,-1352.0,0.00021175,2]
[320047230,1711115441839,-6823.93657301,0.00021296,2]
[320047231,1711115441849,-7348.02726621,0.00021342,2]
[320047232,1711115441859,-27668.19509561,0.00021342,2]
[320047233,1711115441868,-1436.0,0.000215,2]
[320047234,1711115441878,-478.880788,0.00021644,2]
[320047235,1711115441887,-167.74,0.00021691,2]
[320047236,1711115441896,-725.18,0.000217,2]
[320047237,1711115441907,-931.0,0.000218,2]
[320047238,1711115441916,-10811.0,0.000218,5]
[320047239,1711115441926,-330.94491637,0.000218,2]
[320047240,1711115441935,-330.94491637,0.000218,2]
[320047241,1711115441945,-330.94491637,0.000218,2]
[320047242,1711115441954,-330.94491637,0.000218,2]
[320047243,1711115441964,-330.94491637,0.000218,2]
[320047244,1711115441973,-330.94491637,0.000218,2]
[320047245,1711115441983,-330.94491637,0.000218,2]
[320047246,1711115441992,-330.94491637,0.000218,2]
[320047247,1711115442002,-330.94491637,0.000218,2]
[320047248,1711115442011,-330.94491637,0.000218,2]
[320047249,1711115442020,-330.94491637,0.000218,2]
[320047250,1711115442035,-330.94491637,0.000218,2]
[320047251,1711115442045,-330.94491637,0.000218,2]
[320047252,1711115442054,-330.94491637,0.000218,2]
[320047253,1711115442064,-330.94491637,0.000218,2]
[320047254,1711115442074,-330.94491637,0.000218,2]
[320047255,1711115442083,-330.94491637,0.000218,2]
[320047256,1711115442092,-330.94491637,0.000218,2]
[320047257,1711115442101,-330.94491637,0.000218,2]
[320047258,1711115442111,-330.94491637,0.000218,2]
[320047259,1711115442120,-330.94491637,0.000218,2]
[320047260,1711115442129,-330.94491637,0.000218,2]
[320047261,1711115442139,-330.94491637,0.000218,2]
[320047262,1711115442147,-330.94491637,0.000218,2]
[320047263,1711115442157,-330.94491637,0.000218,2]
[320047264,1711115442166,-330.94491637,0.000218,2]
[320047265,1711115442175,-330.94491637,0.000218,2]
[320047266,1711115442184,-330.94491637,0.000218,2]
[320047267,1711115442194,-330.94491637,0.000218,2]
[320047268,1711115442203,-330.94491637,0.000218,2]
[320047269,1711115442211,-330.94491637,0.000218,2]
[320047270,1711115442222,-330.94491637,0.000218,2]
[320047271,1711115442233,-330.94491637,0.000218,2]
[320047272,1711115442241,-330.94491637,0.000218,2]
[320047273,1711115442250,-330.94491637,0.000218,2]
[320047274,1711115442259,-330.94491637,0.000218,2]
[320047275,1711115442269,-330.94491637,0.000218,2]
[320047276,1711115442282,-330.94491637,0.000218,2]
[320047277,1711115442293,-330.94491637,0.000218,2]
[320047278,1711115442302,-330.94491637,0.000218,2]
[320047279,1711115442311,-330.94491637,0.000218,2]
[320047280,1711115442319,-330.94491637,0.000218,2]
[320047281,1711115442328,-330.94491637,0.000218,2]
[320047282,1711115442337,-2122.61,0.00021857,2]
[320047283,1711115442346,-167.0,0.00021858,2]
[320047284,1711115442354,-215.0,0.0002188,2]
[320047285,1711115442363,-702.79,0.000219,2]
[320047286,1711115442372,-703.5,0.00021918,10]
[320047287,1711115442380,-250.0,0.00021918,2]
[320047288,1711115442389,-343.56,0.00021934,2]
[320047289,1711115442652,-332.68544586,0.00022,2]
[320047290,1711115442662,-780.27085357,0.00022,2]
[320047291,1711115442672,-948.53742504,0.00022,2]
[320047292,1711115442682,-7690.16857398,0.00022,2]
[320047293,1711115442692,-155.0,0.00022,2]
[320047294,1711115442702,-6823.93657301,0.00022054,2]
[320047295,1711115442711,-150.89814334,0.00022098,2]
[320047296,1711115442721,-150.89814334,0.00022144,2]
[320047297,1711115442730,-455.0,0.00022191,2]
[320047298,1711115442739,-7348.02726621,0.00022253,2]
[320047299,1711115442749,-27668.19509561,0.00022254,2]
[320047300,1711115442759,-164.88834178,0.00022428,2]
[320047301,1711115442768,-151.07869167,0.00022442,2]
[320047302,1711115442781,-150.0,0.00022451,2]
[320047303,1711115442790,-150.153,0.00022451,2]
[320047304,1711115442799,-150.0,0.00022451,2]
[320047305,1711115442808,-478.880788,0.00022466,2]
[320047306,1711115442817,-1000.0,0.00022466,2]
[320047307,1711115442827,-393.33,0.00022521,2]
[320047308,1711115442837,-274.37318661,0.0002255,2]
[320047309,1711115442847,-29999.99,0.00022562,2]
[320047310,1711115442856,-158.2082673,0.00022596,2]
[320047311,1711115442866,-1379.0,0.00022639,2]
[320047312,1711115442875,-2563.0,0.00022639,2]
[320047313,1711115442885,-960.0,0.00022639,2]
[320047314,1711115442894,-1226.0,0.00022639,2]
[320047315,1711115442904,-457.0,0.00022639,2]
[320047316,1711115442913,-536.0,0.00022639,2]
[320047317,1711115442923,-432.0,0.00022639,2]
[320047318,1711115442933,-1251.0,0.00022639,2]
[320047319,1711115442942,-278.0,0.00022639,2]
[320047320,1711115442951,-603.0,0.00022639,2]
[320047321,1711115442961,-1265.0,0.00022639,2]
[320047322,1711115442970,-150.0,0.00022639,2]
[320047323,1711115442979,-2933.0,0.00022639,2]
[320047324,1711115442990,-358.0,0.00022639,2]
[320047325,1711115443000,-801.0,0.00022639,2]
[320047326,1711115443011,-1137.0,0.00022639,2]
[320047327,1711115443020,-1460.0,0.00022639,2]
[320047328,1711115443036,-150.0,0.00022639,2]
[320047331,1711115443045,-2420.0,0.00022639,2]
[320047334,1711115443055,-213.0,0.00022639,2]
[320047336,1711115443066,-1624.0,0.00022639,2]
[320047337,1711115443076,-5673.0,0.00022639,2]
[320047338,1711115443086,-42920.0,0.00022639,2]
[320047339,1711115443096,-4766.0,0.00022639,2]
[320047340,1711115443105,-2446.0,0.00022639,2]
[320047341,1711115443115,-151.0,0.00022639,2]
[320047342,1711115443124,-150.103,0.00022639,2]
[320047343,1711115443133,-150.0,0.00022639,2]
[320047344,1711115443142,-150.0,0.00022639,2]
[320047346,1711115443153,-150.89814334,0.00022657,2]
[320047348,1711115443163,-274.37318661,0.00022747,2]
[320047350,1711115443173,-784.0,0.00022804,2]
[320047351,1711115443182,-2044.20108434,0.00022805,2]
[320047353,1711115443192,-1086.32427722,0.00022805,2]
[320047354,1711115443201,-501.29835015,0.00022805,2]
[320047356,1711115443211,-6823.93657301,0.00022812,2]
[320047357,1711115443219,-251.69,0.00022827,2]
[320047359,1711115443228,-208.25,0.00022877,2]
[320047360,1711115443237,-1400.0,0.00022944,2]
[320047362,1711115443246,-216.0,0.0002296,2]
[320047363,1711115443255,-600.0,0.00023,3]
[320047365,1711115443264,-150.0,0.00023034,2]
[320047367,1711115443273,-151.07869167,0.00023037,2]
[320047369,1711115443288,-155.9590286,0.00023052,2]
[320047374,1711115443298,-150.0,0.00023069,2]
[320047377,1711115443308,-168.51980138,0.00023096,2]
[320047379,1711115443317,-150.0,0.00023142,2]
[320047380,1711115443326,-164.88834178,0.00023151,2]
[320047381,1711115443335,-150.89814334,0.00023155,2]
[320047382,1711115443344,-150.0,0.00023163,2]
[320047383,1711115443358,-7348.02726621,0.00023165,2]
[320047385,1711115443367,-27668.19509561,0.00023165,2]
[320047386,1711115443377,-931.0,0.000232,2]
[320047387,1711115443387,-725.18,0.000232,2]
[320047388,1711115443397,-274.37318661,0.00023286,2]
[320047389,1711115443406,-1000.0,0.00023288,2]
[320047390,1711115443415,-1000.0,0.00023288,2]
[320047391,1711115443424,-1000.0,0.00023288,2]
[320047392,1711115443432,-1000.0,0.00023288,2]
[320047393,1711115443442,-1000.0,0.00023288,2]
[320047394,1711115443452,-1000.0,0.00023288,2]
[320047395,1711115443461,-1000.0,0.00023288,2]
[320047396,1711115443470,-1000.0,0.00023288,2]
[320047397,1711115443479,-1000.0,0.00023288,2]
[320047398,1711115443488,-1000.0,0.00023288,2]
[320047399,1711115443498,-1000.0,0.00023288,2]
[320047400,1711115443508,-1000.0,0.00023288,2]
[320047401,1711115443517,-1000.0,0.00023288,2]
[320047402,1711115443528,-1000.0,0.00023288,2]
[320047403,1711115443539,-1000.0,0.00023288,2]
[320047404,1711115443549,-1000.0,0.00023288,2]
[320047405,1711115443558,-1000.0,0.00023288,2]
[320047406,1711115443567,-1000.0,0.00023288,2]
[320047407,1711115443576,-1000.0,0.00023288,2]
[320047408,1711115443586,-1000.0,0.00023288,2]
[320047409,1711115443597,-1000.0,0.00023288,2]
[320047410,1711115443606,-1000.0,0.00023288,2]
[320047411,1711115443615,-1000.0,0.00023288,2]
[320047412,1711115443624,-1000.0,0.00023288,2]
[320047413,1711115443634,-1000.0,0.00023288,2]
[320047414,1711115443643,-679.0,0.00023288,2]
[320047415,1711115443652,-478.880788,0.00023288,2]
[320047416,1711115443661,-702.79,0.000234,2]
[320047417,1711115443671,-215.0,0.000234,2]
[320047418,1711115443682,-528.54,0.0002342,2]
[320047419,1711115443693,-455.0,0.00023452,2]
[320047420,1711115443702,-155.9590286,0.00023487,2]
[320047421,1711115443712,-93708.78774391,0.000235,2]
[320047422,1711115443786,-330.94491637,0.000218,2]
[320047423,1711115443795,-15553.58008363,0.000235,2]
[320047424,1711115443811,-314.49999965,0.000235,2]
[320047426,1711115443833,-885.17589352,0.000235,2]
[320047428,1711115443846,-305.63148956,0.000235,2]
[320047429,1711115443895,-330.94491637,0.000218,2]
[320047430,1711115443904,-50382.68930801,0.000235,2]
[320047431,1711115443925,-418.34805773,0.000235,2]
[320047432,1711115443942,-722.16303184,0.000235,2]
[320047526,1711115444821,-330.94491637,0.000218,2]
[320047528,1711115444831,-330.94491637,0.000218,2]
[320047531,1711115444841,-330.94491637,0.000218,2]
[320047532,1711115444851,-330.94491637,0.000218,2]
[320047535,1711115444861,-330.94491637,0.000218,2]
[320047537,1711115444872,-330.94491637,0.000218,2]
[320047539,1711115444882,-330.94491637,0.000218,2]
[320047541,1711115444891,-330.94491637,0.000218,2]
[320047543,1711115444900,-330.94491637,0.000218,2]
[320047545,1711115444911,-330.94491637,0.000218,2]
[320047547,1711115444920,-330.94491637,0.000218,2]
[320047549,1711115444929,-330.94491637,0.000218,2]
[320047551,1711115444939,-184.798,0.00022639,2]
[320047553,1711115444948,-7021.36167232,0.000235,2]
[320047556,1711115444971,-50687.76271983,0.000235,2]
[320047558,1711115444982,-154.37729846,0.00023531,2]
[320047560,1711115444991,-1920.53549675,0.0002354,2]
[320047563,1711115445013,-6823.93657301,0.0002357,2]
[320047566,1711115445025,-164.88834178,0.00023578,2]
[320047568,1711115445036,-164.88834178,0.00023579,2]
[320047570,1711115445046,-274.37318661,0.00023652,2]
[320047572,1711115445057,-154.01093767,0.00023822,2]
[320047574,1711115445067,-164.88834178,0.00023881,2]
[320047576,1711115445078,-150.0,0.00023881,2]
[320047578,1711115445088,-150.0,0.00023908,2]
[320047581,1711115445103,-343.56,0.00023928,2]
[320047583,1711115445113,-168.51980138,0.00023958,2]
[320047585,1711115445123,-155.9590286,0.00023998,2]
[320047587,1711115445133,-204.86057929,0.00024,2]
[320047589,1711115445143,-1362.40826936,0.00024,2]
[320047591,1711115445153,-155.9590286,0.00024071,2]
[320047593,1711115445163,-7348.02726621,0.00024077,2]
[320047595,1711115445173,-27668.19509561,0.00024077,2]
[320047597,1711115445184,-200.0,0.00024103,2]
[320047599,1711115445194,-478.880788,0.0002411,2]
[320047602,1711115445204,-154.62857147,0.00024242,2]
[320047604,1711115445215,-2000.0,0.00024249,2]
[320047606,1711115445225,-36565.76371178,0.0002425,2]
[320047608,1711115445234,-1198.46,0.00024285,2]
[320047610,1711115445244,-6823.93657301,0.00024329,2]
[320047612,1711115445254,-151.0,0.00024384,7]
[320047614,1711115445264,-151.0,0.00024384,7]
[320047616,1711115445273,-151.0,0.00024384,7]
[320047618,1711115445284,-229.108284,0.00024384,7]
[320047620,1711115445294,-151.0,0.00024384,7]
[320047622,1711115445303,-151.0,0.00024384,7]
[320047624,1711115445313,-151.0,0.00024384,7]
[320047626,1711115445323,-151.0,0.00024384,7]
[320047628,1711115445333,-151.0,0.00024384,7]
[320047630,1711115445345,-151.0,0.00024384,7]
[320047633,1711115445355,-151.0,0.00024384,7]
[320047635,1711115445366,-151.0,0.00024384,7]
[320047637,1711115445376,-151.0,0.00024384,7]
[320047639,1711115445388,-158.300388,0.00024384,7]
[320047641,1711115445397,-158.300388,0.00024384,7]
[320047643,1711115445407,-158.300388,0.00024384,7]
[320047645,1711115445418,-158.300388,0.00024384,7]
[320047647,1711115445428,-158.300388,0.00024384,7]
[320047650,1711115445441,-158.300388,0.00024384,7]
[320047652,1711115445451,-151.0,0.00024384,7]
[320047654,1711115445461,-151.0,0.00024384,7]
[320047656,1711115445471,-151.0,0.00024384,7]
[320047658,1711115445481,-151.0,0.00024384,7]
[320047660,1711115445491,-151.0,0.00024384,7]
[320047662,1711115445500,-151.0,0.00024384,7]
[320047664,1711115445511,-151.0,0.00024384,7]
[320047666,1711115445520,-151.0,0.00024384,7]
[320047668,1711115445532,-151.0,0.00024384,7]
[320047670,1711115445545,-151.0,0.00024384,7]
[320047672,1711115445554,-151.0,0.00024384,7]
[320047675,1711115445564,-151.0,0.00024384,7]
[320047677,1711115445574,-151.0,0.00024384,7]
[320047679,1711115445584,-151.0,0.00024384,7]
[320047681,1711115445594,-151.0,0.00024384,7]
[320047683,1711115445606,-151.0,0.00024384,7]
[320047685,1711115445615,-151.0,0.00024384,7]
[320047687,1711115445625,-260.722128,0.00024384,7]
[320047689,1711115445635,-219.113817,0.00024384,7]
[320047691,1711115445644,-151.0,0.00024384,7]
[320047693,1711115445654,-151.0,0.00024384,7]
[320047695,1711115445663,-154.112379,0.00024384,7]
[320047697,1711115445672,-151.0,0.00024384,7]
[320047699,1711115445682,-151.0,0.00024384,7]
[320047701,1711115445691,-151.0,0.00024384,7]
[320047703,1711115445701,-204.984143,0.00024384,7]
[320047705,1711115445710,-151.0,0.00024384,7]
[320047708,1711115445723,-151.0,0.00024384,7]
[320047710,1711115445733,-151.0,0.00024384,7]
[320047712,1711115445742,-151.0,0.00024384,7]
[320047714,1711115445752,-151.0,0.00024384,7]
[320047716,1711115445762,-151.0,0.00024384,7]
[320047718,1711115445772,-151.0,0.00024384,7]
[320047720,1711115445784,-151.0,0.00024384,7]
[320047722,1711115445794,-151.0,0.00024384,7]
[320047724,1711115445804,-229.510697,0.00024384,7]
[320047726,1711115445814,-331.581339,0.00024384,7]
[320047729,1711115445826,-331.581339,0.00024384,7]
[320047731,1711115445837,-331.581339,0.00024384,7]
[320047733,1711115445847,-331.581339,0.00024384,7]
[320047735,1711115445858,-331.581339,0.00024384,7]
[320047737,1711115445868,-331.581339,0.00024384,7]
[320047739,1711115445878,-151.0,0.00024384,7]
[320047741,1711115445888,-151.0,0.00024384,7]
[320047743,1711115445898,-151.0,0.00024384,7]
[320047745,1711115445908,-151.0,0.00024384,7]
[320047747,1711115445917,-151.0,0.00024384,7]
[320047749,1711115445927,-151.0,0.00024384,7]
[320047751,1711115445937,-151.0,0.00024384,7]
[320047753,1711115445947,-151.0,0.00024384,7]
[320047755,1711115445957,-155.905293,0.00024384,7]
[320047758,1711115445967,-151.0,0.00024384,7]
[320047760,1711115445977,-151.0,0.00024384,7]
[320047762,1711115445987,-151.0,0.00024384,7]
[320047764,1711115445997,-239.919731,0.00024384,7]
[320047766,1711115446007,-549.335766,0.00024384,7]
[320047768,1711115446017,-549.335766,0.00024384,7]
[320047770,1711115446032,-549.335766,0.00024384,7]
[320047772,1711115446042,-549.335766,0.00024384,7]
[320047775,1711115446052,-549.335766,0.00024384,7]
[320047778,1711115446062,-549.335766,0.00024384,7]
[320047781,1711115446073,-151.0,0.00024384,7]
[320047784,1711115446083,-151.0,0.00024384,7]
[320047787,1711115446093,-151.0,0.00024384,7]
[320047790,1711115446103,-151.0,0.00024384,7]
[320047793,1711115446113,-151.0,0.00024384,7]
[320047796,1711115446122,-151.0,0.00024384,7]
[320047800,1711115446133,-302.405322,0.00024384,7]
[320047804,1711115446142,-302.405322,0.00024384,7]
[320047807,1711115446151,-302.405322,0.00024384,7]
[320047810,1711115446161,-151.0,0.00024384,7]
[320047812,1711115446171,-302.405322,0.00024384,7]
[320047814,1711115446181,-151.0,0.00024384,7]
[320047816,1711115446191,-302.405322,0.00024384,7]
[320047818,1711115446200,-151.0,0.00024384,7]
[320047820,1711115446211,-302.405322,0.00024384,7]
[320047822,1711115446221,-183.711982,0.00024384,7]
[320047824,1711115446231,-183.711982,0.00024384,7]
[320047825,1711115446241,-183.711982,0.00024384,7]
[320047826,1711115446250,-151.0,0.00024384,7]
[320047827,1711115446260,-151.0,0.00024384,7]
[320047828,1711115446270,-151.0,0.00024384,7]
[320047829,1711115446283,-183.711982,0.00024384,7]
[320047830,1711115446294,-183.711982,0.00024384,7]
[320047831,1711115446304,-183.711982,0.00024384,7]
[320047832,1711115446314,-232.182676,0.00024384,7]
[320047833,1711115446323,-232.182676,0.00024384,7]
[320047835,1711115446334,-232.182676,0.00024384,7]
[320047837,1711115446343,-232.182676,0.00024384,7]
[320047839,1711115446354,-232.182676,0.00024384,7]
[320047841,1711115446364,-232.182676,0.00024384,7]
[320047843,1711115446374,-190.060345,0.00024384,7]
[320047845,1711115446384,-190.060345,0.00024384,7]
[320047847,1711115446393,-190.060345,0.00024384,7]
[320047849,1711115446403,-190.060345,0.00024384,7]
[320047852,1711115446413,-190.060345,0.00024384,7]
[320047854,1711115446423,-190.060345,0.00024384,7]
[320047856,1711115446434,-151.0,0.00024384,7]
[320047858,1711115446443,-151.0,0.00024384,7]
[320047860,1711115446453,-151.0,0.00024384,7]
[320047862,1711115446462,-151.0,0.00024384,7]
[320047864,1711115446471,-151.0,0.00024384,7]
[320047866,1711115446481,-151.0,0.00024384,7]
[320047868,1711115446490,-151.0,0.00024384,7]
[320047871,1711115446500,-151.0,0.00024384,7]
[320047873,1711115446510,-151.0,0.00024384,7]
[320047875,1711115446520,-189.540091,0.00024384,7]
[320047877,1711115446534,-189.540091,0.00024384,7]
[320047879,1711115446548,-189.540091,0.00024384,7]
[320047882,1711115446557,-189.540091,0.00024384,7]
[320047885,1711115446566,-189.540091,0.00024384,7]
[320047888,1711115446576,-189.540091,0.00024384,7]
[320047890,1711115446586,-175.997,0.00024384,7]
[320047891,1711115446597,-175.997,0.00024384,7]
[320047894,1711115446607,-175.997,0.00024384,7]
[320047896,1711115446616,-175.997,0.00024384,7]
[320047898,1711115446625,-175.997,0.00024384,7]
[320047900,1711115446635,-175.997,0.00024384,7]
[320047902,1711115446644,-151.0,0.00024384,7]
[320047904,1711115446654,-151.0,0.00024384,7]
[320047906,1711115446664,-151.0,0.00024384,7]
[320047942,1711115447008,-151.0,0.00024384,7]
[320047944,1711115447018,-151.0,0.00024384,7]
[320047946,1711115447029,-151.0,0.00024384,7]
[320047948,1711115447039,-154.081655,0.00024384,7]
[320047950,1711115447048,-579.245287,0.00024384,7]
[320047952,1711115447057,-579.245287,0.00024384,7]
[320047954,1711115447067,-579.245287,0.00024384,7]
[320047956,1711115447076,-579.245287,0.00024384,7]
[320047958,1711115447086,-579.245287,0.00024384,7]
[320047960,1711115447095,-579.245287,0.00024384,7]
[320047962,1711115447104,-314.732103,0.00024384,7]
[320047964,1711115447114,-314.732103,0.00024384,7]
[320047966,1711115447123,-314.732103,0.00024384,7]
[320047968,1711115447132,-314.732103,0.00024384,7]
[320047970,1711115447142,-314.732103,0.00024384,7]
[320047972,1711115447151,-314.732103,0.00024384,7]
[320047974,1711115447160,-151.0,0.00024384,7]
[320047976,1711115447171,-151.0,0.00024384,7]
[320047979,1711115447183,-151.0,0.00024384,7]
[320047981,1711115447193,-151.0,0.00024384,7]
[320047983,1711115447202,-151.0,0.00024384,7]
[320047985,1711115447212,-151.0,0.00024384,7]
[320047987,1711115447221,-151.0,0.00024384,7]
[320047989,1711115447231,-170.550446,0.00024384,7]
[320047991,1711115447241,-151.0,0.00024384,7]
[320047993,1711115447251,-170.550446,0.00024384,7]
[320047995,1711115447260,-151.0,0.00024384,7]
[320047997,1711115447270,-170.550446,0.00024384,7]
[320047999,1711115447283,-151.0,0.00024384,7]
[320048001,1711115447293,-170.550446,0.00024384,7]
[320048003,1711115447303,-151.0,0.00024384,7]
[320048005,1711115447313,-170.550446,0.00024384,7]
[320048007,1711115447323,-151.0,0.00024384,7]
[320048009,1711115447333,-170.550446,0.00024384,7]
[320048011,1711115447343,-287.51147,0.00024384,7]
[320048013,1711115447352,-151.0,0.00024384,7]
[320048015,1711115447362,-151.0,0.00024384,7]
[320048017,1711115447371,-151.0,0.00024384,7]
[320048019,1711115447381,-151.0,0.00024384,7]
[320048021,1711115447390,-151.0,0.00024384,7]
[320048023,1711115447399,-151.0,0.00024384,7]
[320048025,1711115447409,-151.0,0.00024384,7]
[320048027,1711115447418,-151.0,0.00024384,7]
[320048030,1711115447440,-151.0,0.00024384,7]
[320048033,1711115447453,-151.0,0.00024384,7]
[320048035,1711115447462,-156.73692,0.00024384,7]
[320048037,1711115447471,-300.178353,0.00024384,7]
[320048038,1711115447480,-402.720022,0.00024384,7]
[320048041,1711115447490,-402.720022,0.00024384,7]
[320048043,1711115447499,-402.720022,0.00024384,7]
[320048045,1711115447509,-402.720022,0.00024384,7]
[320048047,1711115447519,-402.720022,0.00024384,7]
[320048049,1711115447531,-402.720022,0.00024384,7]
[320048051,1711115447542,-402.720022,0.00024384,7]
[320048053,1711115447552,-402.720022,0.00024384,7]
[320048055,1711115447561,-281.445774,0.00024384,7]
[320048057,1711115447570,-281.445774,0.00024384,7]
[320048059,1711115447580,-281.445774,0.00024384,7]
[320048061,1711115447593,-281.445774,0.00024384,7]
[320048063,1711115447603,-281.445774,0.00024384,7]
[320048065,1711115447612,-281.445774,0.00024384,7]
[320048067,1711115447622,-281.445774,0.00024384,7]
[320048069,1711115447631,-281.445774,0.00024384,7]
[320048071,1711115447641,-151.0,0.00024384,7]
[320048073,1711115447651,-151.0,0.00024384,7]
[320048075,1711115447660,-151.0,0.00024384,7]
[320048077,1711115447672,-151.0,0.00024384,7]
[320048079,1711115447681,-569.200209,0.00024384,7]
[320048081,1711115447691,-569.200209,0.00024384,7]
[320048083,1711115447700,-569.200209,0.00024384,7]
[320048085,1711115447710,-569.200209,0.00024384,7]
[320048087,1711115447719,-569.200209,0.00024384,7]
[320048089,1711115447729,-569.200209,0.00024384,7]
[320048091,1711115447739,-569.200209,0.00024384,7]
[320048093,1711115447748,-569.200209,0.00024384,7]
[320048095,1711115447758,-152.281949,0.00024384,7]
[320048097,1711115447769,-152.281949,0.00024384,7]
[320048099,1711115447780,-152.281949,0.00024384,7]
[320048101,1711115447790,-152.281949,0.00024384,7]
[320048103,1711115447800,-152.281949,0.00024384,7]
[320048105,1711115447809,-152.281949,0.00024384,7]
[320048107,1711115447818,-152.281949,0.00024384,7]
[320048109,1711115447827,-152.281949,0.00024384,7]
[320048112,1711115447837,-1312.772811,0.00024384,7]
[320048114,1711115447846,-1312.772811,0.00024384,7]
[320048116,1711115447857,-1312.772811,0.00024384,7]
[320048118,1711115447866,-1312.772811,0.00024384,7]
[320048120,1711115447875,-1312.772811,0.00024384,7]
[320048122,1711115447885,-151.0,0.00024384,7]
[320048123,1711115447894,-1312.772811,0.00024384,7]
[320048125,1711115447903,-151.0,0.00024384,7]
[320048127,1711115447912,-1312.772811,0.00024384,7]
[320048129,1711115447921,-1312.772811,0.00024384,7]
[320048131,1711115447930,-151.0,0.00024384,7]
[320048133,1711115447939,-151.0,0.00024384,7]
[320048135,1711115447949,-151.0,0.00024384,7]
[320048137,1711115447958,-151.0,0.00024384,7]
[320048139,1711115447968,-151.0,0.00024384,7]
[320048141,1711115447977,-151.0,0.00024384,7]
[320048144,1711115447986,-169.348144,0.00024384,7]
[320048145,1711115447996,-169.348144,0.00024384,7]
[320048147,1711115448005,-169.348144,0.00024384,7]
[320048150,1711115448015,-299.176164,0.00024384,7]
[320048152,1711115448024,-169.348144,0.00024384,7]
[320048154,1711115448035,-151.0,0.00024384,7]
[320048156,1711115448044,-151.0,0.00024384,7]
[320048157,1711115448053,-169.348144,0.00024384,7]
[320048160,1711115448063,-151.0,0.00024384,7]
[320048162,1711115448074,-169.348144,0.00024384,7]
[320048164,1711115448084,-169.348144,0.00024384,7]
[320048166,1711115448093,-169.348144,0.00024384,7]
[320048168,1711115448103,-303.39444,0.00024384,7]
[320048170,1711115448112,-303.39444,0.00024384,7]
[320048172,1711115448122,-151.0,0.00024384,7]
[320048174,1711115448131,-151.0,0.00024384,7]
[320048176,1711115448140,-303.39444,0.00024384,7]
[320048178,1711115448154,-151.0,0.00024384,7]
[320048180,1711115448164,-303.39444,0.00024384,7]
[320048183,1711115448174,-303.39444,0.00024384,7]
[320048185,1711115448184,-151.0,0.00024384,7]
[320048187,1711115448194,-303.39444,0.00024384,7]
[320048189,1711115448203,-151.0,0.00024384,7]
[320048191,1711115448213,-303.39444,0.00024384,7]
[320048193,1711115448223,-151.0,0.00024384,7]
[320048195,1711115448233,-303.39444,0.00024384,7]
[320048197,1711115448243,-151.0,0.00024384,7]
[320048199,1711115448252,-151.0,0.00024384,7]
[320048201,1711115448263,-151.0,0.00024384,7]
[320048203,1711115448272,-151.0,0.00024384,7]
[320048205,1711115448284,-151.0,0.00024384,7]
[320048207,1711115448293,-151.0,0.00024384,2]